{"text_format":"3","workbook":"xlsx","n_sheets":4,"sheets":["НАЧАЛО","ПАРАМЕТРИ НА ПРОЕКТИТЕ","ПОДРОБНОСТИ ЗА ПРОЕКТИТЕ","ОБЩИ СУМИ ЗА ПРОЕКТИТЕ"],"not_rendered":{"charts":2,"defined_names":3,"pivot_tables":1},"read":"whole","date_system":"1900"}

{"sheet":"НАЧАЛО","index":0,"n_rows":7,"n_cols":3,"rows_kept":7}
[null,"ЗА ТОЗИ ШАБЛОН"]
[null,"Проследявайте параметрите на проекти, подробните данни за проекти и общите суми за проектите в тази работна книга \"Проследяване на планиране на събитие\"."]
[null,"Въведете информация в работния лист \"Параметри на проекти\", за да актуализирате колонните диаграми, и в работния лист \"Подробности за проекти\". Обобщената таблица в работния лист \"Общи суми за проектите\" се актуализира автоматично."]
[null,"Попълнете името на фирмата в работния лист \"Параметри\", и то ще се актуализира автоматично в другите работни листове."]
[null,"Забележка:  "," "]
[null,"Допълнителни инструкции са предоставени в колона A във всеки работен лист в работната книга ПРОСЛЕДЯВАНЕ НА ПЛАНИРАНЕ НА СЪБИТИЕ. Този текст е скрит нарочно. За да премахнете текста, изберете колона А, след което изберете DELETE. За да покажете текст, изберете колона A, след което променете цвета на шрифта."]
[null,"За да научите повече за таблиците в работните листове, натиснете SHIFT и след това F10 в таблица, изберете опцията ТАБЛИЦА, след което изберете АЛТЕРНАТИВЕН ТЕКСТ."]

{"sheet":"ПАРАМЕТРИ НА ПРОЕКТИТЕ","index":1,"n_rows":19,"n_cols":9,"rows_kept":19,"merged":[[23,1,42,3]]}
[null,"Име на фирма"]
[null,"Проследяване на проекти за управление на събития"]
[null,{"$f":"B1&\" Поверително\"","v":"Име на фирма Поверително"}]
[null,"Оцветените клетки се изчисляват автоматично. Не трябва да въвеждате нищо в тях."]
[null,"ТИП ПРОЕКТ","МЕНИДЖЪР КЛИЕНТИ","МЕНИДЖЪР ПРОЕКТИ","МЕНИДЖЪР СТРАТЕГИЯ","СПЕЦИАЛИСТ ПО ДИЗАЙН","ПЕРСОНАЛ ЗА СЪБИТИЕТО","АДМИНИСТРАТИВЕН ПЕРСОНАЛ","Общо"]
[null,"Разработване на стратегия за събитие",{"v":0.2,"d":"20%"},{"v":0.1,"d":"10%"},{"v":0.6,"d":"60%"},{"v":0,"d":"0%"},{"v":0,"d":"0%"},{"v":0.1,"d":"10%"},{"$f":"SUM(Параметри[[#This Row],[МЕНИДЖЪР КЛИЕНТИ]:[АДМИНИСТРАТИВЕН ПЕРСОНАЛ]])","v":{"v":1,"d":"100%"}}]
[null,"Планиране на събитие",{"v":0.2,"d":"20%"},{"v":0.5,"d":"50%"},{"v":0.1,"d":"10%"},{"v":0.1,"d":"10%"},{"v":0,"d":"0%"},{"v":0.1,"d":"10%"},{"$f":"SUM(Параметри[[#This Row],[МЕНИДЖЪР КЛИЕНТИ]:[АДМИНИСТРАТИВЕН ПЕРСОНАЛ]])","v":{"v":0.9999999999999999,"d":"100%"}}]
[null,"Проектиране на събитие",{"v":0.2,"d":"20%"},{"v":0.2,"d":"20%"},{"v":0,"d":"0%"},{"v":0.5,"d":"50%"},{"v":0,"d":"0%"},{"v":0.1,"d":"10%"},{"$f":"SUM(Параметри[[#This Row],[МЕНИДЖЪР КЛИЕНТИ]:[АДМИНИСТРАТИВЕН ПЕРСОНАЛ]])","v":{"v":1,"d":"100%"}}]
[null,"Логистика на събитие",{"v":0.2,"d":"20%"},{"v":0.6,"d":"60%"},{"v":0,"d":"0%"},{"v":0,"d":"0%"},{"v":0.1,"d":"10%"},{"v":0.1,"d":"10%"},{"$f":"SUM(Параметри[[#This Row],[МЕНИДЖЪР КЛИЕНТИ]:[АДМИНИСТРАТИВЕН ПЕРСОНАЛ]])","v":{"v":1,"d":"100%"}}]
[null,"Осигуряване на персонал за събитие",{"v":0.2,"d":"20%"},{"v":0.1,"d":"10%"},{"v":0,"d":"0%"},{"v":0,"d":"0%"},{"v":0.6,"d":"60%"},{"v":0.1,"d":"10%"},{"$f":"SUM(Параметри[[#This Row],[МЕНИДЖЪР КЛИЕНТИ]:[АДМИНИСТРАТИВЕН ПЕРСОНАЛ]])","v":{"v":1,"d":"100%"}}]
[null,"Оценка на събитие",{"v":0.2,"d":"20%"},{"v":0.2,"d":"20%"},{"v":0.2,"d":"20%"},{"v":0.2,"d":"20%"},{"v":0,"d":"0%"},{"v":0.2,"d":"20%"},{"$f":"SUM(Параметри[[#This Row],[МЕНИДЖЪР КЛИЕНТИ]:[АДМИНИСТРАТИВЕН ПЕРСОНАЛ]])","v":{"v":1,"d":"100%"}}]
[null,"Смесени проценти",{"v":180,"d":"180 лв."},{"v":120,"d":"120 лв."},{"v":150,"d":"150 лв."},{"v":100,"d":"100 лв."},{"v":80,"d":"80 лв."},{"v":60,"d":"60 лв."}]
[]
[{"$nulls":5},"Колонната диаграма, показваща планираните спрямо действителните часове, е в тази клетка."]
[null,null,"МЕНИДЖЪР КЛИЕНТИ","МЕНИДЖЪР ПРОЕКТИ","МЕНИДЖЪР СТРАТЕГИЯ","СПЕЦИАЛИСТ ПО ДИЗАЙН","ПЕРСОНАЛ ЗА СЪБИТИЕТО","АДМИНИСТРАТИВЕН ПЕРСОНАЛ"]
[null,"ПЛАНИРАНИ РАЗХОДИ",{"$f":"SUBTOTAL(109,ПодробностиЗаПроекта[МЕНИДЖЪР КЛИЕНТИ])","v":{"v":54000,"d":"54,000.00 лв."}},{"$f":"SUBTOTAL(109,ПодробностиЗаПроекта[МЕНИДЖЪР ПРОЕКТИ])","v":{"v":52200,"d":"52,200.00 лв."}},{"$f":"SUBTOTAL(109,ПодробностиЗаПроекта[МЕНИДЖЪР СТРАТЕГИЯ])","v":{"v":24000,"d":"24,000.00 лв."}},{"$f":"SUBTOTAL(109,ПодробностиЗаПроекта[СПЕЦИАЛИСТ ПО ДИЗАЙН])","v":{"v":29000,"d":"29,000.00 лв."}},{"$f":"SUBTOTAL(109,ПодробностиЗаПроекта[ПЕРСОНАЛ ЗА СЪБИТИЕТО])","v":{"v":13200,"d":"13,200.00 лв."}},{"$f":"SUBTOTAL(109,ПодробностиЗаПроекта[АДМИНИСТРАТИВЕН ПЕРСОНАЛ])","v":{"v":9000,"d":"9,000.00 лв."}}]
[null,"ДЕЙСТВИТЕЛНИ РАЗХОДИ",{"$f":"SUBTOTAL(109,ПодробностиЗаПроекта[[МЕНИДЖЪР КЛИЕНТИ ]])","v":{"v":54360,"d":"54,360.00 лв."}},{"$f":"SUBTOTAL(109,ПодробностиЗаПроекта[[МЕНИДЖЪР ПРОЕКТИ ]])","v":{"v":51540,"d":"51,540.00 лв."}},{"$f":"SUBTOTAL(109,ПодробностиЗаПроекта[[МЕНИДЖЪР СТРАТЕГИЯ ]])","v":{"v":25650,"d":"25,650.00 лв."}},{"$f":"SUBTOTAL(109,ПодробностиЗаПроекта[[СПЕЦИАЛИСТ ПО ДИЗАЙН ]])","v":{"v":28900,"d":"28,900.00 лв."}},{"$f":"SUBTOTAL(109,ПодробностиЗаПроекта[[ПЕРСОНАЛ ЗА СЪБИТИЕТО ]])","v":{"v":13400,"d":"13,400.00 лв."}},{"$f":"SUBTOTAL(109,ПодробностиЗаПроекта[[АДМИНИСТРАТИВЕН ПЕРСОНАЛ ]])","v":{"v":9060,"d":"9,060.00 лв."}}]
[null,"ПЛАНИРАНИ ЧАСОВЕ",{"$f":"C16/$C$12","v":{"v":300,"d":"300.00"}},{"$f":"D16/$C$12","v":{"v":290,"d":"290.00"}},{"v":133.33333333333334,"d":"133.33"},{"v":161.11111111111111,"d":"161.11"},{"v":73.33333333333333,"d":"73.33"},{"v":50,"d":"50.00"}]
[null,"ДЕЙСТВИТЕЛНИ ЧАСОВЕ",{"$f":"C17/$C$12","v":{"v":302,"d":"302.00"}},{"$f":"D17/$C$12","v":{"v":286.3333333333333,"d":"286.33"}},{"$f":"E17/$C$12","v":{"v":142.5,"d":"142.50"}},{"$f":"F17/$C$12","v":{"v":160.55555555555554,"d":"160.56"}},{"$f":"G17/$C$12","v":{"v":74.44444444444444,"d":"74.44"}},{"$f":"H17/$C$12","v":{"v":50.333333333333336,"d":"50.33"}}]

{"sheet":"ПОДРОБНОСТИ ЗА ПРОЕКТИТЕ","index":2,"n_rows":10,"n_cols":23,"rows_kept":10}
[null,{"$f":"'ПАРАМЕТРИ НА ПРОЕКТИТЕ'!B1","v":"Име на фирма"}]
[null,"Проследяване на проекти за управление на събития"]
[null,{"$f":"'ПАРАМЕТРИ НА ПРОЕКТИТЕ'!B3","v":"Име на фирма Поверително"}]
["Въведете информация в таблицата \"Подробности за проектите\", като започнете от клетката вдясно.\nИНФОРМАЦИЯ\nЗа добавяне на ред в таблица вдясно изберете клетката най-долу вдясно в тялото на таблицата (а не в сумарния ред) и натиснете клавиша Tab или натиснете SHIFT+F10 там, където искате да се вмъкне редът, след което изберете \"Вмъкни\" | Редове на таблица отгоре/отдолу\".\nНе забравяйте да изтриете всички неизползвани редове, тъй като обобщената таблица ОБЩИ СУМИ ЗА ПРОЕКТИТЕ ще използва всички клетки на таблиците и в противен случай ще върне грешни резултати.","ИМЕ НА ПРОЕКТ","ТИП ПРОЕКТ","ОЧАКВАНО НАЧАЛО","ОЧАКВАН КРАЙ","ДЕЙСТВИТЕЛНО НАЧАЛО","ДЕЙСТВИТЕЛЕН КРАЙ","ОЧАКВАНА РАБОТА","ДЕЙСТВИТЕЛНА РАБОТА","ОЧАКВАНА ПРОДЪЛЖИТЕЛНОСТ","ДЕЙСТВИТЕЛНА ПРОДЪЛЖИТЕЛНОСТ","МЕНИДЖЪР КЛИЕНТИ","МЕНИДЖЪР ПРОЕКТИ","МЕНИДЖЪР СТРАТЕГИЯ","СПЕЦИАЛИСТ ПО ДИЗАЙН","ПЕРСОНАЛ ЗА СЪБИТИЕТО","АДМИНИСТРАТИВЕН ПЕРСОНАЛ","МЕНИДЖЪР КЛИЕНТИ ","МЕНИДЖЪР ПРОЕКТИ ","МЕНИДЖЪР СТРАТЕГИЯ ","СПЕЦИАЛИСТ ПО ДИЗАЙН ","ПЕРСОНАЛ ЗА СЪБИТИЕТО ","АДМИНИСТРАТИВЕН ПЕРСОНАЛ "]
[null,"Проект 1","Разработване на стратегия за събитие",{"$f":"DATE(YEAR(TODAY()),6,9)","v":"2022-06-09"},{"$f":" DATE(YEAR(TODAY()),8,7)","v":"2022-08-07"},{"$f":"DATE(YEAR(TODAY()),6,29)","v":"2022-06-29"},{"$f":"DATE(YEAR(TODAY()),9,3)","v":"2022-09-03"},200,220,{"$f":"DAYS360(ПодробностиЗаПроекта[[#This Row],[ОЧАКВАНО НАЧАЛО]],ПодробностиЗаПроекта[[#This Row],[ОЧАКВАН КРАЙ]],FALSE)","v":58},{"$f":"DAYS360(ПодробностиЗаПроекта[[#This Row],[ДЕЙСТВИТЕЛНО НАЧАЛО]],ПодробностиЗаПроекта[[#This Row],[ДЕЙСТВИТЕЛЕН КРАЙ]],FALSE)","v":64},{"$f":"INDEX(Параметри[],MATCH(ПодробностиЗаПроекта[[#This Row],[ТИП ПРОЕКТ]],Параметри[ТИП ПРОЕКТ],0),MATCH(ПодробностиЗаПроекта[[#Headers],[МЕНИДЖЪР КЛИЕНТИ]],Параметри[#Headers],0))*INDEX('ПАРАМЕТРИ НА ПРОЕКТИТЕ'!$B$12:$H$12,1,MATCH(ПодробностиЗаПроекта[[#Headers],[МЕНИДЖЪР КЛИЕНТИ]],Параметри[#Headers],0))*ПодробностиЗаПроекта[[#This Row],[ОЧАКВАНА РАБОТА]]","v":{"v":7200,"d":"7,200 лв."}},{"$f":"INDEX(Параметри[],MATCH(ПодробностиЗаПроекта[[#This Row],[ТИП ПРОЕКТ]],Параметри[ТИП ПРОЕКТ],0),MATCH(ПодробностиЗаПроекта[[#Headers],[МЕНИДЖЪР ПРОЕКТИ]],Параметри[#Headers],0))*INDEX('ПАРАМЕТРИ НА ПРОЕКТИТЕ'!$B$12:$H$12,1,MATCH(ПодробностиЗаПроекта[[#Headers],[МЕНИДЖЪР ПРОЕКТИ]],Параметри[#Headers],0))*ПодробностиЗаПроекта[[#This Row],[ОЧАКВАНА РАБОТА]]","v":{"v":2400,"d":"2,400 лв."}},{"$f":"INDEX(Параметри[],MATCH(ПодробностиЗаПроекта[[#This Row],[ТИП ПРОЕКТ]],Параметри[ТИП ПРОЕКТ],0),MATCH(ПодробностиЗаПроекта[[#Headers],[МЕНИДЖЪР СТРАТЕГИЯ]],Параметри[#Headers],0))*INDEX('ПАРАМЕТРИ НА ПРОЕКТИТЕ'!$B$12:$H$12,1,MATCH(ПодробностиЗаПроекта[[#Headers],[МЕНИДЖЪР СТРАТЕГИЯ]],Параметри[#Headers],0))*ПодробностиЗаПроекта[[#This Row],[ОЧАКВАНА РАБОТА]]","v":{"v":18000,"d":"18,000 лв."}},{"$f":"INDEX(Параметри[],MATCH(ПодробностиЗаПроекта[[#This Row],[ТИП ПРОЕКТ]],Параметри[ТИП ПРОЕКТ],0),MATCH(ПодробностиЗаПроекта[[#Headers],[СПЕЦИАЛИСТ ПО ДИЗАЙН]],Параметри[#Headers],0))*INDEX('ПАРАМЕТРИ НА ПРОЕКТИТЕ'!$B$12:$H$12,1,MATCH(ПодробностиЗаПроекта[[#Headers],[СПЕЦИАЛИСТ ПО ДИЗАЙН]],Параметри[#Headers],0))*ПодробностиЗаПроекта[[#This Row],[ОЧАКВАНА РАБОТА]]","v":{"v":0,"d":"0 лв."}},{"$f":"INDEX(Параметри[],MATCH(ПодробностиЗаПроекта[[#This Row],[ТИП ПРОЕКТ]],Параметри[ТИП ПРОЕКТ],0),MATCH(ПодробностиЗаПроекта[[#Headers],[ПЕРСОНАЛ ЗА СЪБИТИЕТО]],Параметри[#Headers],0))*INDEX('ПАРАМЕТРИ НА ПРОЕКТИТЕ'!$B$12:$H$12,1,MATCH(ПодробностиЗаПроекта[[#Headers],[ПЕРСОНАЛ ЗА СЪБИТИЕТО]],Параметри[#Headers],0))*ПодробностиЗаПроекта[[#This Row],[ОЧАКВАНА РАБОТА]]","v":{"v":0,"d":"0 лв."}},{"$f":"INDEX(Параметри[],MATCH(ПодробностиЗаПроекта[[#This Row],[ТИП ПРОЕКТ]],Параметри[ТИП ПРОЕКТ],0),MATCH(ПодробностиЗаПроекта[[#Headers],[АДМИНИСТРАТИВЕН ПЕРСОНАЛ]],Параметри[#Headers],0))*INDEX('ПАРАМЕТРИ НА ПРОЕКТИТЕ'!$B$12:$H$12,1,MATCH(ПодробностиЗаПроекта[[#Headers],[АДМИНИСТРАТИВЕН ПЕРСОНАЛ]],Параметри[#Headers],0))*ПодробностиЗаПроекта[[#This Row],[ОЧАКВАНА РАБОТА]]","v":{"v":1200,"d":"1,200 лв."}},{"$f":"INDEX(Параметри[],MATCH(ПодробностиЗаПроекта[[#This Row],[ТИП ПРОЕКТ]],Параметри[ТИП ПРОЕКТ],0),MATCH(ПодробностиЗаПроекта[[#Headers],[МЕНИДЖЪР КЛИЕНТИ]],Параметри[#Headers],0))*INDEX('ПАРАМЕТРИ НА ПРОЕКТИТЕ'!$B$12:$H$12,1,MATCH(ПодробностиЗаПроекта[[#Headers],[МЕНИДЖЪР КЛИЕНТИ]],Параметри[#Headers],0))*ПодробностиЗаПроекта[[#This Row],[ДЕЙСТВИТЕЛНА РАБОТА]]","v":{"v":7920,"d":"7,920 лв."}},{"$f":"INDEX(Параметри[],MATCH(ПодробностиЗаПроекта[[#This Row],[ТИП ПРОЕКТ]],Параметри[ТИП ПРОЕКТ],0),MATCH(ПодробностиЗаПроекта[[#Headers],[МЕНИДЖЪР ПРОЕКТИ]],Параметри[#Headers],0))*INDEX('ПАРАМЕТРИ НА ПРОЕКТИТЕ'!$B$12:$H$12,1,MATCH(ПодробностиЗаПроекта[[#Headers],[МЕНИДЖЪР ПРОЕКТИ]],Параметри[#Headers],0))*ПодробностиЗаПроекта[[#This Row],[ДЕЙСТВИТЕЛНА РАБОТА]]","v":{"v":2640,"d":"2,640 лв."}},{"$f":"INDEX(Параметри[],MATCH(ПодробностиЗаПроекта[[#This Row],[ТИП ПРОЕКТ]],Параметри[ТИП ПРОЕКТ],0),MATCH(ПодробностиЗаПроекта[[#Headers],[МЕНИДЖЪР СТРАТЕГИЯ]],Параметри[#Headers],0))*INDEX('ПАРАМЕТРИ НА ПРОЕКТИТЕ'!$B$12:$H$12,1,MATCH(ПодробностиЗаПроекта[[#Headers],[МЕНИДЖЪР СТРАТЕГИЯ]],Параметри[#Headers],0))*ПодробностиЗаПроекта[[#This Row],[ДЕЙСТВИТЕЛНА РАБОТА]]","v":{"v":19800,"d":"19,800 лв."}},{"$f":"INDEX(Параметри[],MATCH(ПодробностиЗаПроекта[[#This Row],[ТИП ПРОЕКТ]],Параметри[ТИП ПРОЕКТ],0),MATCH(ПодробностиЗаПроекта[[#Headers],[СПЕЦИАЛИСТ ПО ДИЗАЙН]],Параметри[#Headers],0))*INDEX('ПАРАМЕТРИ НА ПРОЕКТИТЕ'!$B$12:$H$12,1,MATCH(ПодробностиЗаПроекта[[#Headers],[СПЕЦИАЛИСТ ПО ДИЗАЙН]],Параметри[#Headers],0))*ПодробностиЗаПроекта[[#This Row],[ДЕЙСТВИТЕЛНА РАБОТА]]","v":{"v":0,"d":"0 лв."}},{"$f":"INDEX(Параметри[],MATCH(ПодробностиЗаПроекта[[#This Row],[ТИП ПРОЕКТ]],Параметри[ТИП ПРОЕКТ],0),MATCH(ПодробностиЗаПроекта[[#Headers],[ПЕРСОНАЛ ЗА СЪБИТИЕТО]],Параметри[#Headers],0))*INDEX('ПАРАМЕТРИ НА ПРОЕКТИТЕ'!$B$12:$H$12,1,MATCH(ПодробностиЗаПроекта[[#Headers],[ПЕРСОНАЛ ЗА СЪБИТИЕТО]],Параметри[#Headers],0))*ПодробностиЗаПроекта[[#This Row],[ДЕЙСТВИТЕЛНА РАБОТА]]","v":{"v":0,"d":"0 лв."}},{"$f":"INDEX(Параметри[],MATCH(ПодробностиЗаПроекта[[#This Row],[ТИП ПРОЕКТ]],Параметри[ТИП ПРОЕКТ],0),MATCH(ПодробностиЗаПроекта[[#Headers],[АДМИНИСТРАТИВЕН ПЕРСОНАЛ]],Параметри[#Headers],0))*INDEX('ПАРАМЕТРИ НА ПРОЕКТИТЕ'!$B$12:$H$12,1,MATCH(ПодробностиЗаПроекта[[#Headers],[АДМИНИСТРАТИВЕН ПЕРСОНАЛ]],Параметри[#Headers],0))*ПодробностиЗаПроекта[[#This Row],[ДЕЙСТВИТЕЛНА РАБОТА]]","v":{"v":1320,"d":"1,320 лв."}}]
[null,"Проект 2","Планиране на събитие",{"$f":"DATE(YEAR(TODAY())+1,6,25)","v":"2023-06-25"},{"$f":"DATE(YEAR(TODAY())+1,7,27)","v":"2023-07-27"},{"$f":"DATE(YEAR(TODAY()),7,15)","v":"2022-07-15"},{"$f":"DATE(YEAR(TODAY())+1,8,25)","v":"2023-08-25"},400,390,{"$f":"DAYS360(ПодробностиЗаПроекта[[#This Row],[ОЧАКВАНО НАЧАЛО]],ПодробностиЗаПроекта[[#This Row],[ОЧАКВАН КРАЙ]],FALSE)","v":32},{"$f":"DAYS360(ПодробностиЗаПроекта[[#This Row],[ДЕЙСТВИТЕЛНО НАЧАЛО]],ПодробностиЗаПроекта[[#This Row],[ДЕЙСТВИТЕЛЕН КРАЙ]],FALSE)","v":400},{"$f":"INDEX(Параметри[],MATCH(ПодробностиЗаПроекта[[#This Row],[ТИП ПРОЕКТ]],Параметри[ТИП ПРОЕКТ],0),MATCH(ПодробностиЗаПроекта[[#Headers],[МЕНИДЖЪР КЛИЕНТИ]],Параметри[#Headers],0))*INDEX('ПАРАМЕТРИ НА ПРОЕКТИТЕ'!$B$12:$H$12,1,MATCH(ПодробностиЗаПроекта[[#Headers],[МЕНИДЖЪР КЛИЕНТИ]],Параметри[#Headers],0))*ПодробностиЗаПроекта[[#This Row],[ОЧАКВАНА РАБОТА]]","v":{"v":14400,"d":"14,400 лв."}},{"$f":"INDEX(Параметри[],MATCH(ПодробностиЗаПроекта[[#This Row],[ТИП ПРОЕКТ]],Параметри[ТИП ПРОЕКТ],0),MATCH(ПодробностиЗаПроекта[[#Headers],[МЕНИДЖЪР ПРОЕКТИ]],Параметри[#Headers],0))*INDEX('ПАРАМЕТРИ НА ПРОЕКТИТЕ'!$B$12:$H$12,1,MATCH(ПодробностиЗаПроекта[[#Headers],[МЕНИДЖЪР ПРОЕКТИ]],Параметри[#Headers],0))*ПодробностиЗаПроекта[[#This Row],[ОЧАКВАНА РАБОТА]]","v":{"v":24000,"d":"24,000 лв."}},{"$f":"INDEX(Параметри[],MATCH(ПодробностиЗаПроекта[[#This Row],[ТИП ПРОЕКТ]],Параметри[ТИП ПРОЕКТ],0),MATCH(ПодробностиЗаПроекта[[#Headers],[МЕНИДЖЪР СТРАТЕГИЯ]],Параметри[#Headers],0))*INDEX('ПАРАМЕТРИ НА ПРОЕКТИТЕ'!$B$12:$H$12,1,MATCH(ПодробностиЗаПроекта[[#Headers],[МЕНИДЖЪР СТРАТЕГИЯ]],Параметри[#Headers],0))*ПодробностиЗаПроекта[[#This Row],[ОЧАКВАНА РАБОТА]]","v":{"v":6000,"d":"6,000 лв."}},{"$f":"INDEX(Параметри[],MATCH(ПодробностиЗаПроекта[[#This Row],[ТИП ПРОЕКТ]],Параметри[ТИП ПРОЕКТ],0),MATCH(ПодробностиЗаПроекта[[#Headers],[СПЕЦИАЛИСТ ПО ДИЗАЙН]],Параметри[#Headers],0))*INDEX('ПАРАМЕТРИ НА ПРОЕКТИТЕ'!$B$12:$H$12,1,MATCH(ПодробностиЗаПроекта[[#Headers],[СПЕЦИАЛИСТ ПО ДИЗАЙН]],Параметри[#Headers],0))*ПодробностиЗаПроекта[[#This Row],[ОЧАКВАНА РАБОТА]]","v":{"v":4000,"d":"4,000 лв."}},{"$f":"INDEX(Параметри[],MATCH(ПодробностиЗаПроекта[[#This Row],[ТИП ПРОЕКТ]],Параметри[ТИП ПРОЕКТ],0),MATCH(ПодробностиЗаПроекта[[#Headers],[ПЕРСОНАЛ ЗА СЪБИТИЕТО]],Параметри[#Headers],0))*INDEX('ПАРАМЕТРИ НА ПРОЕКТИТЕ'!$B$12:$H$12,1,MATCH(ПодробностиЗаПроекта[[#Headers],[ПЕРСОНАЛ ЗА СЪБИТИЕТО]],Параметри[#Headers],0))*ПодробностиЗаПроекта[[#This Row],[ОЧАКВАНА РАБОТА]]","v":{"v":0,"d":"0 лв."}},{"$f":"INDEX(Параметри[],MATCH(ПодробностиЗаПроекта[[#This Row],[ТИП ПРОЕКТ]],Параметри[ТИП ПРОЕКТ],0),MATCH(ПодробностиЗаПроекта[[#Headers],[АДМИНИСТРАТИВЕН ПЕРСОНАЛ]],Параметри[#Headers],0))*INDEX('ПАРАМЕТРИ НА ПРОЕКТИТЕ'!$B$12:$H$12,1,MATCH(ПодробностиЗаПроекта[[#Headers],[АДМИНИСТРАТИВЕН ПЕРСОНАЛ]],Параметри[#Headers],0))*ПодробностиЗаПроекта[[#This Row],[ОЧАКВАНА РАБОТА]]","v":{"v":2400,"d":"2,400 лв."}},{"$f":"INDEX(Параметри[],MATCH(ПодробностиЗаПроекта[[#This Row],[ТИП ПРОЕКТ]],Параметри[ТИП ПРОЕКТ],0),MATCH(ПодробностиЗаПроекта[[#Headers],[МЕНИДЖЪР КЛИЕНТИ]],Параметри[#Headers],0))*INDEX('ПАРАМЕТРИ НА ПРОЕКТИТЕ'!$B$12:$H$12,1,MATCH(ПодробностиЗаПроекта[[#Headers],[МЕНИДЖЪР КЛИЕНТИ]],Параметри[#Headers],0))*ПодробностиЗаПроекта[[#This Row],[ДЕЙСТВИТЕЛНА РАБОТА]]","v":{"v":14040,"d":"14,040 лв."}},{"$f":"INDEX(Параметри[],MATCH(ПодробностиЗаПроекта[[#This Row],[ТИП ПРОЕКТ]],Параметри[ТИП ПРОЕКТ],0),MATCH(ПодробностиЗаПроекта[[#Headers],[МЕНИДЖЪР ПРОЕКТИ]],Параметри[#Headers],0))*INDEX('ПАРАМЕТРИ НА ПРОЕКТИТЕ'!$B$12:$H$12,1,MATCH(ПодробностиЗаПроекта[[#Headers],[МЕНИДЖЪР ПРОЕКТИ]],Параметри[#Headers],0))*ПодробностиЗаПроекта[[#This Row],[ДЕЙСТВИТЕЛНА РАБОТА]]","v":{"v":23400,"d":"23,400 лв."}},{"$f":"INDEX(Параметри[],MATCH(ПодробностиЗаПроекта[[#This Row],[ТИП ПРОЕКТ]],Параметри[ТИП ПРОЕКТ],0),MATCH(ПодробностиЗаПроекта[[#Headers],[МЕНИДЖЪР СТРАТЕГИЯ]],Параметри[#Headers],0))*INDEX('ПАРАМЕТРИ НА ПРОЕКТИТЕ'!$B$12:$H$12,1,MATCH(ПодробностиЗаПроекта[[#Headers],[МЕНИДЖЪР СТРАТЕГИЯ]],Параметри[#Headers],0))*ПодробностиЗаПроекта[[#This Row],[ДЕЙСТВИТЕЛНА РАБОТА]]","v":{"v":5850,"d":"5,850 лв."}},{"$f":"INDEX(Параметри[],MATCH(ПодробностиЗаПроекта[[#This Row],[ТИП ПРОЕКТ]],Параметри[ТИП ПРОЕКТ],0),MATCH(ПодробностиЗаПроекта[[#Headers],[СПЕЦИАЛИСТ ПО ДИЗАЙН]],Параметри[#Headers],0))*INDEX('ПАРАМЕТРИ НА ПРОЕКТИТЕ'!$B$12:$H$12,1,MATCH(ПодробностиЗаПроекта[[#Headers],[СПЕЦИАЛИСТ ПО ДИЗАЙН]],Параметри[#Headers],0))*ПодробностиЗаПроекта[[#This Row],[ДЕЙСТВИТЕЛНА РАБОТА]]","v":{"v":3900,"d":"3,900 лв."}},{"$f":"INDEX(Параметри[],MATCH(ПодробностиЗаПроекта[[#This Row],[ТИП ПРОЕКТ]],Параметри[ТИП ПРОЕКТ],0),MATCH(ПодробностиЗаПроекта[[#Headers],[ПЕРСОНАЛ ЗА СЪБИТИЕТО]],Параметри[#Headers],0))*INDEX('ПАРАМЕТРИ НА ПРОЕКТИТЕ'!$B$12:$H$12,1,MATCH(ПодробностиЗаПроекта[[#Headers],[ПЕРСОНАЛ ЗА СЪБИТИЕТО]],Параметри[#Headers],0))*ПодробностиЗаПроекта[[#This Row],[ДЕЙСТВИТЕЛНА РАБОТА]]","v":{"v":0,"d":"0 лв."}},{"$f":"INDEX(Параметри[],MATCH(ПодробностиЗаПроекта[[#This Row],[ТИП ПРОЕКТ]],Параметри[ТИП ПРОЕКТ],0),MATCH(ПодробностиЗаПроекта[[#Headers],[АДМИНИСТРАТИВЕН ПЕРСОНАЛ]],Параметри[#Headers],0))*INDEX('ПАРАМЕТРИ НА ПРОЕКТИТЕ'!$B$12:$H$12,1,MATCH(ПодробностиЗаПроекта[[#Headers],[АДМИНИСТРАТИВЕН ПЕРСОНАЛ]],Параметри[#Headers],0))*ПодробностиЗаПроекта[[#This Row],[ДЕЙСТВИТЕЛНА РАБОТА]]","v":{"v":2340,"d":"2,340 лв."}}]
[null,"Проект 3","Проектиране на събитие",{"$f":"DATE(YEAR(TODAY())+2,7,12)","v":"2024-07-12"},{"$f":"DATE(YEAR(TODAY())+2,9,19)","v":"2024-09-19"},"2025-08-07","2025-10-10",500,500,{"$f":"DAYS360(ПодробностиЗаПроекта[[#This Row],[ОЧАКВАНО НАЧАЛО]],ПодробностиЗаПроекта[[#This Row],[ОЧАКВАН КРАЙ]],FALSE)","v":67},{"$f":"DAYS360(ПодробностиЗаПроекта[[#This Row],[ДЕЙСТВИТЕЛНО НАЧАЛО]],ПодробностиЗаПроекта[[#This Row],[ДЕЙСТВИТЕЛЕН КРАЙ]],FALSE)","v":63},{"$f":"INDEX(Параметри[],MATCH(ПодробностиЗаПроекта[[#This Row],[ТИП ПРОЕКТ]],Параметри[ТИП ПРОЕКТ],0),MATCH(ПодробностиЗаПроекта[[#Headers],[МЕНИДЖЪР КЛИЕНТИ]],Параметри[#Headers],0))*INDEX('ПАРАМЕТРИ НА ПРОЕКТИТЕ'!$B$12:$H$12,1,MATCH(ПодробностиЗаПроекта[[#Headers],[МЕНИДЖЪР КЛИЕНТИ]],Параметри[#Headers],0))*ПодробностиЗаПроекта[[#This Row],[ОЧАКВАНА РАБОТА]]","v":{"v":18000,"d":"18,000 лв."}},{"$f":"INDEX(Параметри[],MATCH(ПодробностиЗаПроекта[[#This Row],[ТИП ПРОЕКТ]],Параметри[ТИП ПРОЕКТ],0),MATCH(ПодробностиЗаПроекта[[#Headers],[МЕНИДЖЪР ПРОЕКТИ]],Параметри[#Headers],0))*INDEX('ПАРАМЕТРИ НА ПРОЕКТИТЕ'!$B$12:$H$12,1,MATCH(ПодробностиЗаПроекта[[#Headers],[МЕНИДЖЪР ПРОЕКТИ]],Параметри[#Headers],0))*ПодробностиЗаПроекта[[#This Row],[ОЧАКВАНА РАБОТА]]","v":{"v":12000,"d":"12,000 лв."}},{"$f":"INDEX(Параметри[],MATCH(ПодробностиЗаПроекта[[#This Row],[ТИП ПРОЕКТ]],Параметри[ТИП ПРОЕКТ],0),MATCH(ПодробностиЗаПроекта[[#Headers],[МЕНИДЖЪР СТРАТЕГИЯ]],Параметри[#Headers],0))*INDEX('ПАРАМЕТРИ НА ПРОЕКТИТЕ'!$B$12:$H$12,1,MATCH(ПодробностиЗаПроекта[[#Headers],[МЕНИДЖЪР СТРАТЕГИЯ]],Параметри[#Headers],0))*ПодробностиЗаПроекта[[#This Row],[ОЧАКВАНА РАБОТА]]","v":{"v":0,"d":"0 лв."}},{"$f":"INDEX(Параметри[],MATCH(ПодробностиЗаПроекта[[#This Row],[ТИП ПРОЕКТ]],Параметри[ТИП ПРОЕКТ],0),MATCH(ПодробностиЗаПроекта[[#Headers],[СПЕЦИАЛИСТ ПО ДИЗАЙН]],Параметри[#Headers],0))*INDEX('ПАРАМЕТРИ НА ПРОЕКТИТЕ'!$B$12:$H$12,1,MATCH(ПодробностиЗаПроекта[[#Headers],[СПЕЦИАЛИСТ ПО ДИЗАЙН]],Параметри[#Headers],0))*ПодробностиЗаПроекта[[#This Row],[ОЧАКВАНА РАБОТА]]","v":{"v":25000,"d":"25,000 лв."}},{"$f":"INDEX(Параметри[],MATCH(ПодробностиЗаПроекта[[#This Row],[ТИП ПРОЕКТ]],Параметри[ТИП ПРОЕКТ],0),MATCH(ПодробностиЗаПроекта[[#Headers],[ПЕРСОНАЛ ЗА СЪБИТИЕТО]],Параметри[#Headers],0))*INDEX('ПАРАМЕТРИ НА ПРОЕКТИТЕ'!$B$12:$H$12,1,MATCH(ПодробностиЗаПроекта[[#Headers],[ПЕРСОНАЛ ЗА СЪБИТИЕТО]],Параметри[#Headers],0))*ПодробностиЗаПроекта[[#This Row],[ОЧАКВАНА РАБОТА]]","v":{"v":0,"d":"0 лв."}},{"$f":"INDEX(Параметри[],MATCH(ПодробностиЗаПроекта[[#This Row],[ТИП ПРОЕКТ]],Параметри[ТИП ПРОЕКТ],0),MATCH(ПодробностиЗаПроекта[[#Headers],[АДМИНИСТРАТИВЕН ПЕРСОНАЛ]],Параметри[#Headers],0))*INDEX('ПАРАМЕТРИ НА ПРОЕКТИТЕ'!$B$12:$H$12,1,MATCH(ПодробностиЗаПроекта[[#Headers],[АДМИНИСТРАТИВЕН ПЕРСОНАЛ]],Параметри[#Headers],0))*ПодробностиЗаПроекта[[#This Row],[ОЧАКВАНА РАБОТА]]","v":{"v":3000,"d":"3,000 лв."}},{"$f":"INDEX(Параметри[],MATCH(ПодробностиЗаПроекта[[#This Row],[ТИП ПРОЕКТ]],Параметри[ТИП ПРОЕКТ],0),MATCH(ПодробностиЗаПроекта[[#Headers],[МЕНИДЖЪР КЛИЕНТИ]],Параметри[#Headers],0))*INDEX('ПАРАМЕТРИ НА ПРОЕКТИТЕ'!$B$12:$H$12,1,MATCH(ПодробностиЗаПроекта[[#Headers],[МЕНИДЖЪР КЛИЕНТИ]],Параметри[#Headers],0))*ПодробностиЗаПроекта[[#This Row],[ДЕЙСТВИТЕЛНА РАБОТА]]","v":{"v":18000,"d":"18,000 лв."}},{"$f":"INDEX(Параметри[],MATCH(ПодробностиЗаПроекта[[#This Row],[ТИП ПРОЕКТ]],Параметри[ТИП ПРОЕКТ],0),MATCH(ПодробностиЗаПроекта[[#Headers],[МЕНИДЖЪР ПРОЕКТИ]],Параметри[#Headers],0))*INDEX('ПАРАМЕТРИ НА ПРОЕКТИТЕ'!$B$12:$H$12,1,MATCH(ПодробностиЗаПроекта[[#Headers],[МЕНИДЖЪР ПРОЕКТИ]],Параметри[#Headers],0))*ПодробностиЗаПроекта[[#This Row],[ДЕЙСТВИТЕЛНА РАБОТА]]","v":{"v":12000,"d":"12,000 лв."}},{"$f":"INDEX(Параметри[],MATCH(ПодробностиЗаПроекта[[#This Row],[ТИП ПРОЕКТ]],Параметри[ТИП ПРОЕКТ],0),MATCH(ПодробностиЗаПроекта[[#Headers],[МЕНИДЖЪР СТРАТЕГИЯ]],Параметри[#Headers],0))*INDEX('ПАРАМЕТРИ НА ПРОЕКТИТЕ'!$B$12:$H$12,1,MATCH(ПодробностиЗаПроекта[[#Headers],[МЕНИДЖЪР СТРАТЕГИЯ]],Параметри[#Headers],0))*ПодробностиЗаПроекта[[#This Row],[ДЕЙСТВИТЕЛНА РАБОТА]]","v":{"v":0,"d":"0 лв."}},{"$f":"INDEX(Параметри[],MATCH(ПодробностиЗаПроекта[[#This Row],[ТИП ПРОЕКТ]],Параметри[ТИП ПРОЕКТ],0),MATCH(ПодробностиЗаПроекта[[#Headers],[СПЕЦИАЛИСТ ПО ДИЗАЙН]],Параметри[#Headers],0))*INDEX('ПАРАМЕТРИ НА ПРОЕКТИТЕ'!$B$12:$H$12,1,MATCH(ПодробностиЗаПроекта[[#Headers],[СПЕЦИАЛИСТ ПО ДИЗАЙН]],Параметри[#Headers],0))*ПодробностиЗаПроекта[[#This Row],[ДЕЙСТВИТЕЛНА РАБОТА]]","v":{"v":25000,"d":"25,000 лв."}},{"$f":"INDEX(Параметри[],MATCH(ПодробностиЗаПроекта[[#This Row],[ТИП ПРОЕКТ]],Параметри[ТИП ПРОЕКТ],0),MATCH(ПодробностиЗаПроекта[[#Headers],[ПЕРСОНАЛ ЗА СЪБИТИЕТО]],Параметри[#Headers],0))*INDEX('ПАРАМЕТРИ НА ПРОЕКТИТЕ'!$B$12:$H$12,1,MATCH(ПодробностиЗаПроекта[[#Headers],[ПЕРСОНАЛ ЗА СЪБИТИЕТО]],Параметри[#Headers],0))*ПодробностиЗаПроекта[[#This Row],[ДЕЙСТВИТЕЛНА РАБОТА]]","v":{"v":0,"d":"0 лв."}},{"$f":"INDEX(Параметри[],MATCH(ПодробностиЗаПроекта[[#This Row],[ТИП ПРОЕКТ]],Параметри[ТИП ПРОЕКТ],0),MATCH(ПодробностиЗаПроекта[[#Headers],[АДМИНИСТРАТИВЕН ПЕРСОНАЛ]],Параметри[#Headers],0))*INDEX('ПАРАМЕТРИ НА ПРОЕКТИТЕ'!$B$12:$H$12,1,MATCH(ПодробностиЗаПроекта[[#Headers],[АДМИНИСТРАТИВЕН ПЕРСОНАЛ]],Параметри[#Headers],0))*ПодробностиЗаПроекта[[#This Row],[ДЕЙСТВИТЕЛНА РАБОТА]]","v":{"v":3000,"d":"3,000 лв."}}]
[null,"Проект 4","Логистика на събитие",{"$f":"DATE(YEAR(TODAY())+3,7,30)","v":"2025-07-30"},{"$f":"DATE(YEAR(TODAY())+3,9,28)","v":"2025-09-28"},{"$f":"DATE(YEAR(TODAY())+3,9,14)","v":"2025-09-14"},{"$f":"DATE(YEAR(TODAY())+3,11,13)","v":"2025-11-13"},150,145,{"$f":"DAYS360(ПодробностиЗаПроекта[[#This Row],[ОЧАКВАНО НАЧАЛО]],ПодробностиЗаПроекта[[#This Row],[ОЧАКВАН КРАЙ]],FALSE)","v":58},{"$f":"DAYS360(ПодробностиЗаПроекта[[#This Row],[ДЕЙСТВИТЕЛНО НАЧАЛО]],ПодробностиЗаПроекта[[#This Row],[ДЕЙСТВИТЕЛЕН КРАЙ]],FALSE)","v":59},{"$f":"INDEX(Параметри[],MATCH(ПодробностиЗаПроекта[[#This Row],[ТИП ПРОЕКТ]],Параметри[ТИП ПРОЕКТ],0),MATCH(ПодробностиЗаПроекта[[#Headers],[МЕНИДЖЪР КЛИЕНТИ]],Параметри[#Headers],0))*INDEX('ПАРАМЕТРИ НА ПРОЕКТИТЕ'!$B$12:$H$12,1,MATCH(ПодробностиЗаПроекта[[#Headers],[МЕНИДЖЪР КЛИЕНТИ]],Параметри[#Headers],0))*ПодробностиЗаПроекта[[#This Row],[ОЧАКВАНА РАБОТА]]","v":{"v":5400,"d":"5,400 лв."}},{"$f":"INDEX(Параметри[],MATCH(ПодробностиЗаПроекта[[#This Row],[ТИП ПРОЕКТ]],Параметри[ТИП ПРОЕКТ],0),MATCH(ПодробностиЗаПроекта[[#Headers],[МЕНИДЖЪР ПРОЕКТИ]],Параметри[#Headers],0))*INDEX('ПАРАМЕТРИ НА ПРОЕКТИТЕ'!$B$12:$H$12,1,MATCH(ПодробностиЗаПроекта[[#Headers],[МЕНИДЖЪР ПРОЕКТИ]],Параметри[#Headers],0))*ПодробностиЗаПроекта[[#This Row],[ОЧАКВАНА РАБОТА]]","v":{"v":10800,"d":"10,800 лв."}},{"$f":"INDEX(Параметри[],MATCH(ПодробностиЗаПроекта[[#This Row],[ТИП ПРОЕКТ]],Параметри[ТИП ПРОЕКТ],0),MATCH(ПодробностиЗаПроекта[[#Headers],[МЕНИДЖЪР СТРАТЕГИЯ]],Параметри[#Headers],0))*INDEX('ПАРАМЕТРИ НА ПРОЕКТИТЕ'!$B$12:$H$12,1,MATCH(ПодробностиЗаПроекта[[#Headers],[МЕНИДЖЪР СТРАТЕГИЯ]],Параметри[#Headers],0))*ПодробностиЗаПроекта[[#This Row],[ОЧАКВАНА РАБОТА]]","v":{"v":0,"d":"0 лв."}},{"$f":"INDEX(Параметри[],MATCH(ПодробностиЗаПроекта[[#This Row],[ТИП ПРОЕКТ]],Параметри[ТИП ПРОЕКТ],0),MATCH(ПодробностиЗаПроекта[[#Headers],[СПЕЦИАЛИСТ ПО ДИЗАЙН]],Параметри[#Headers],0))*INDEX('ПАРАМЕТРИ НА ПРОЕКТИТЕ'!$B$12:$H$12,1,MATCH(ПодробностиЗаПроекта[[#Headers],[СПЕЦИАЛИСТ ПО ДИЗАЙН]],Параметри[#Headers],0))*ПодробностиЗаПроекта[[#This Row],[ОЧАКВАНА РАБОТА]]","v":{"v":0,"d":"0 лв."}},{"$f":"INDEX(Параметри[],MATCH(ПодробностиЗаПроекта[[#This Row],[ТИП ПРОЕКТ]],Параметри[ТИП ПРОЕКТ],0),MATCH(ПодробностиЗаПроекта[[#Headers],[ПЕРСОНАЛ ЗА СЪБИТИЕТО]],Параметри[#Headers],0))*INDEX('ПАРАМЕТРИ НА ПРОЕКТИТЕ'!$B$12:$H$12,1,MATCH(ПодробностиЗаПроекта[[#Headers],[ПЕРСОНАЛ ЗА СЪБИТИЕТО]],Параметри[#Headers],0))*ПодробностиЗаПроекта[[#This Row],[ОЧАКВАНА РАБОТА]]","v":{"v":1200,"d":"1,200 лв."}},{"$f":"INDEX(Параметри[],MATCH(ПодробностиЗаПроекта[[#This Row],[ТИП ПРОЕКТ]],Параметри[ТИП ПРОЕКТ],0),MATCH(ПодробностиЗаПроекта[[#Headers],[АДМИНИСТРАТИВЕН ПЕРСОНАЛ]],Параметри[#Headers],0))*INDEX('ПАРАМЕТРИ НА ПРОЕКТИТЕ'!$B$12:$H$12,1,MATCH(ПодробностиЗаПроекта[[#Headers],[АДМИНИСТРАТИВЕН ПЕРСОНАЛ]],Параметри[#Headers],0))*ПодробностиЗаПроекта[[#This Row],[ОЧАКВАНА РАБОТА]]","v":{"v":900,"d":"900 лв."}},{"$f":"INDEX(Параметри[],MATCH(ПодробностиЗаПроекта[[#This Row],[ТИП ПРОЕКТ]],Параметри[ТИП ПРОЕКТ],0),MATCH(ПодробностиЗаПроекта[[#Headers],[МЕНИДЖЪР КЛИЕНТИ]],Параметри[#Headers],0))*INDEX('ПАРАМЕТРИ НА ПРОЕКТИТЕ'!$B$12:$H$12,1,MATCH(ПодробностиЗаПроекта[[#Headers],[МЕНИДЖЪР КЛИЕНТИ]],Параметри[#Headers],0))*ПодробностиЗаПроекта[[#This Row],[ДЕЙСТВИТЕЛНА РАБОТА]]","v":{"v":5220,"d":"5,220 лв."}},{"$f":"INDEX(Параметри[],MATCH(ПодробностиЗаПроекта[[#This Row],[ТИП ПРОЕКТ]],Параметри[ТИП ПРОЕКТ],0),MATCH(ПодробностиЗаПроекта[[#Headers],[МЕНИДЖЪР ПРОЕКТИ]],Параметри[#Headers],0))*INDEX('ПАРАМЕТРИ НА ПРОЕКТИТЕ'!$B$12:$H$12,1,MATCH(ПодробностиЗаПроекта[[#Headers],[МЕНИДЖЪР ПРОЕКТИ]],Параметри[#Headers],0))*ПодробностиЗаПроекта[[#This Row],[ДЕЙСТВИТЕЛНА РАБОТА]]","v":{"v":10440,"d":"10,440 лв."}},{"$f":"INDEX(Параметри[],MATCH(ПодробностиЗаПроекта[[#This Row],[ТИП ПРОЕКТ]],Параметри[ТИП ПРОЕКТ],0),MATCH(ПодробностиЗаПроекта[[#Headers],[МЕНИДЖЪР СТРАТЕГИЯ]],Параметри[#Headers],0))*INDEX('ПАРАМЕТРИ НА ПРОЕКТИТЕ'!$B$12:$H$12,1,MATCH(ПодробностиЗаПроекта[[#Headers],[МЕНИДЖЪР СТРАТЕГИЯ]],Параметри[#Headers],0))*ПодробностиЗаПроекта[[#This Row],[ДЕЙСТВИТЕЛНА РАБОТА]]","v":{"v":0,"d":"0 лв."}},{"$f":"INDEX(Параметри[],MATCH(ПодробностиЗаПроекта[[#This Row],[ТИП ПРОЕКТ]],Параметри[ТИП ПРОЕКТ],0),MATCH(ПодробностиЗаПроекта[[#Headers],[СПЕЦИАЛИСТ ПО ДИЗАЙН]],Параметри[#Headers],0))*INDEX('ПАРАМЕТРИ НА ПРОЕКТИТЕ'!$B$12:$H$12,1,MATCH(ПодробностиЗаПроекта[[#Headers],[СПЕЦИАЛИСТ ПО ДИЗАЙН]],Параметри[#Headers],0))*ПодробностиЗаПроекта[[#This Row],[ДЕЙСТВИТЕЛНА РАБОТА]]","v":{"v":0,"d":"0 лв."}},{"$f":"INDEX(Параметри[],MATCH(ПодробностиЗаПроекта[[#This Row],[ТИП ПРОЕКТ]],Параметри[ТИП ПРОЕКТ],0),MATCH(ПодробностиЗаПроекта[[#Headers],[ПЕРСОНАЛ ЗА СЪБИТИЕТО]],Параметри[#Headers],0))*INDEX('ПАРАМЕТРИ НА ПРОЕКТИТЕ'!$B$12:$H$12,1,MATCH(ПодробностиЗаПроекта[[#Headers],[ПЕРСОНАЛ ЗА СЪБИТИЕТО]],Параметри[#Headers],0))*ПодробностиЗаПроекта[[#This Row],[ДЕЙСТВИТЕЛНА РАБОТА]]","v":{"v":1160,"d":"1,160 лв."}},{"$f":"INDEX(Параметри[],MATCH(ПодробностиЗаПроекта[[#This Row],[ТИП ПРОЕКТ]],Параметри[ТИП ПРОЕКТ],0),MATCH(ПодробностиЗаПроекта[[#Headers],[АДМИНИСТРАТИВЕН ПЕРСОНАЛ]],Параметри[#Headers],0))*INDEX('ПАРАМЕТРИ НА ПРОЕКТИТЕ'!$B$12:$H$12,1,MATCH(ПодробностиЗаПроекта[[#Headers],[АДМИНИСТРАТИВЕН ПЕРСОНАЛ]],Параметри[#Headers],0))*ПодробностиЗаПроекта[[#This Row],[ДЕЙСТВИТЕЛНА РАБОТА]]","v":{"v":870,"d":"870 лв."}}]
[null,"Проект 5","Осигуряване на персонал за събитие",{"$f":"DATE(YEAR(TODAY())+4,8,11)","v":"2026-08-11"},{"$f":"DATE(YEAR(TODAY())+4,8,21)","v":"2026-08-21"},{"$f":"DATE(YEAR(TODAY())+4,9,14)","v":"2026-09-14"},{"$f":"DATE(YEAR(TODAY())+4,9,25)","v":"2026-09-25"},250,255,{"$f":"DAYS360(ПодробностиЗаПроекта[[#This Row],[ОЧАКВАНО НАЧАЛО]],ПодробностиЗаПроекта[[#This Row],[ОЧАКВАН КРАЙ]],FALSE)","v":10},{"$f":"DAYS360(ПодробностиЗаПроекта[[#This Row],[ДЕЙСТВИТЕЛНО НАЧАЛО]],ПодробностиЗаПроекта[[#This Row],[ДЕЙСТВИТЕЛЕН КРАЙ]],FALSE)","v":11},{"$f":"INDEX(Параметри[],MATCH(ПодробностиЗаПроекта[[#This Row],[ТИП ПРОЕКТ]],Параметри[ТИП ПРОЕКТ],0),MATCH(ПодробностиЗаПроекта[[#Headers],[МЕНИДЖЪР КЛИЕНТИ]],Параметри[#Headers],0))*INDEX('ПАРАМЕТРИ НА ПРОЕКТИТЕ'!$B$12:$H$12,1,MATCH(ПодробностиЗаПроекта[[#Headers],[МЕНИДЖЪР КЛИЕНТИ]],Параметри[#Headers],0))*ПодробностиЗаПроекта[[#This Row],[ОЧАКВАНА РАБОТА]]","v":{"v":9000,"d":"9,000 лв."}},{"$f":"INDEX(Параметри[],MATCH(ПодробностиЗаПроекта[[#This Row],[ТИП ПРОЕКТ]],Параметри[ТИП ПРОЕКТ],0),MATCH(ПодробностиЗаПроекта[[#Headers],[МЕНИДЖЪР ПРОЕКТИ]],Параметри[#Headers],0))*INDEX('ПАРАМЕТРИ НА ПРОЕКТИТЕ'!$B$12:$H$12,1,MATCH(ПодробностиЗаПроекта[[#Headers],[МЕНИДЖЪР ПРОЕКТИ]],Параметри[#Headers],0))*ПодробностиЗаПроекта[[#This Row],[ОЧАКВАНА РАБОТА]]","v":{"v":3000,"d":"3,000 лв."}},{"$f":"INDEX(Параметри[],MATCH(ПодробностиЗаПроекта[[#This Row],[ТИП ПРОЕКТ]],Параметри[ТИП ПРОЕКТ],0),MATCH(ПодробностиЗаПроекта[[#Headers],[МЕНИДЖЪР СТРАТЕГИЯ]],Параметри[#Headers],0))*INDEX('ПАРАМЕТРИ НА ПРОЕКТИТЕ'!$B$12:$H$12,1,MATCH(ПодробностиЗаПроекта[[#Headers],[МЕНИДЖЪР СТРАТЕГИЯ]],Параметри[#Headers],0))*ПодробностиЗаПроекта[[#This Row],[ОЧАКВАНА РАБОТА]]","v":{"v":0,"d":"0 лв."}},{"$f":"INDEX(Параметри[],MATCH(ПодробностиЗаПроекта[[#This Row],[ТИП ПРОЕКТ]],Параметри[ТИП ПРОЕКТ],0),MATCH(ПодробностиЗаПроекта[[#Headers],[СПЕЦИАЛИСТ ПО ДИЗАЙН]],Параметри[#Headers],0))*INDEX('ПАРАМЕТРИ НА ПРОЕКТИТЕ'!$B$12:$H$12,1,MATCH(ПодробностиЗаПроекта[[#Headers],[СПЕЦИАЛИСТ ПО ДИЗАЙН]],Параметри[#Headers],0))*ПодробностиЗаПроекта[[#This Row],[ОЧАКВАНА РАБОТА]]","v":{"v":0,"d":"0 лв."}},{"$f":"INDEX(Параметри[],MATCH(ПодробностиЗаПроекта[[#This Row],[ТИП ПРОЕКТ]],Параметри[ТИП ПРОЕКТ],0),MATCH(ПодробностиЗаПроекта[[#Headers],[ПЕРСОНАЛ ЗА СЪБИТИЕТО]],Параметри[#Headers],0))*INDEX('ПАРАМЕТРИ НА ПРОЕКТИТЕ'!$B$12:$H$12,1,MATCH(ПодробностиЗаПроекта[[#Headers],[ПЕРСОНАЛ ЗА СЪБИТИЕТО]],Параметри[#Headers],0))*ПодробностиЗаПроекта[[#This Row],[ОЧАКВАНА РАБОТА]]","v":{"v":12000,"d":"12,000 лв."}},{"$f":"INDEX(Параметри[],MATCH(ПодробностиЗаПроекта[[#This Row],[ТИП ПРОЕКТ]],Параметри[ТИП ПРОЕКТ],0),MATCH(ПодробностиЗаПроекта[[#Headers],[АДМИНИСТРАТИВЕН ПЕРСОНАЛ]],Параметри[#Headers],0))*INDEX('ПАРАМЕТРИ НА ПРОЕКТИТЕ'!$B$12:$H$12,1,MATCH(ПодробностиЗаПроекта[[#Headers],[АДМИНИСТРАТИВЕН ПЕРСОНАЛ]],Параметри[#Headers],0))*ПодробностиЗаПроекта[[#This Row],[ОЧАКВАНА РАБОТА]]","v":{"v":1500,"d":"1,500 лв."}},{"$f":"INDEX(Параметри[],MATCH(ПодробностиЗаПроекта[[#This Row],[ТИП ПРОЕКТ]],Параметри[ТИП ПРОЕКТ],0),MATCH(ПодробностиЗаПроекта[[#Headers],[МЕНИДЖЪР КЛИЕНТИ]],Параметри[#Headers],0))*INDEX('ПАРАМЕТРИ НА ПРОЕКТИТЕ'!$B$12:$H$12,1,MATCH(ПодробностиЗаПроекта[[#Headers],[МЕНИДЖЪР КЛИЕНТИ]],Параметри[#Headers],0))*ПодробностиЗаПроекта[[#This Row],[ДЕЙСТВИТЕЛНА РАБОТА]]","v":{"v":9180,"d":"9,180 лв."}},{"$f":"INDEX(Параметри[],MATCH(ПодробностиЗаПроекта[[#This Row],[ТИП ПРОЕКТ]],Параметри[ТИП ПРОЕКТ],0),MATCH(ПодробностиЗаПроекта[[#Headers],[МЕНИДЖЪР ПРОЕКТИ]],Параметри[#Headers],0))*INDEX('ПАРАМЕТРИ НА ПРОЕКТИТЕ'!$B$12:$H$12,1,MATCH(ПодробностиЗаПроекта[[#Headers],[МЕНИДЖЪР ПРОЕКТИ]],Параметри[#Headers],0))*ПодробностиЗаПроекта[[#This Row],[ДЕЙСТВИТЕЛНА РАБОТА]]","v":{"v":3060,"d":"3,060 лв."}},{"$f":"INDEX(Параметри[],MATCH(ПодробностиЗаПроекта[[#This Row],[ТИП ПРОЕКТ]],Параметри[ТИП ПРОЕКТ],0),MATCH(ПодробностиЗаПроекта[[#Headers],[МЕНИДЖЪР СТРАТЕГИЯ]],Параметри[#Headers],0))*INDEX('ПАРАМЕТРИ НА ПРОЕКТИТЕ'!$B$12:$H$12,1,MATCH(ПодробностиЗаПроекта[[#Headers],[МЕНИДЖЪР СТРАТЕГИЯ]],Параметри[#Headers],0))*ПодробностиЗаПроекта[[#This Row],[ДЕЙСТВИТЕЛНА РАБОТА]]","v":{"v":0,"d":"0 лв."}},{"$f":"INDEX(Параметри[],MATCH(ПодробностиЗаПроекта[[#This Row],[ТИП ПРОЕКТ]],Параметри[ТИП ПРОЕКТ],0),MATCH(ПодробностиЗаПроекта[[#Headers],[СПЕЦИАЛИСТ ПО ДИЗАЙН]],Параметри[#Headers],0))*INDEX('ПАРАМЕТРИ НА ПРОЕКТИТЕ'!$B$12:$H$12,1,MATCH(ПодробностиЗаПроекта[[#Headers],[СПЕЦИАЛИСТ ПО ДИЗАЙН]],Параметри[#Headers],0))*ПодробностиЗаПроекта[[#This Row],[ДЕЙСТВИТЕЛНА РАБОТА]]","v":{"v":0,"d":"0 лв."}},{"$f":"INDEX(Параметри[],MATCH(ПодробностиЗаПроекта[[#This Row],[ТИП ПРОЕКТ]],Параметри[ТИП ПРОЕКТ],0),MATCH(ПодробностиЗаПроекта[[#Headers],[ПЕРСОНАЛ ЗА СЪБИТИЕТО]],Параметри[#Headers],0))*INDEX('ПАРАМЕТРИ НА ПРОЕКТИТЕ'!$B$12:$H$12,1,MATCH(ПодробностиЗаПроекта[[#Headers],[ПЕРСОНАЛ ЗА СЪБИТИЕТО]],Параметри[#Headers],0))*ПодробностиЗаПроекта[[#This Row],[ДЕЙСТВИТЕЛНА РАБОТА]]","v":{"v":12240,"d":"12,240 лв."}},{"$f":"INDEX(Параметри[],MATCH(ПодробностиЗаПроекта[[#This Row],[ТИП ПРОЕКТ]],Параметри[ТИП ПРОЕКТ],0),MATCH(ПодробностиЗаПроекта[[#Headers],[АДМИНИСТРАТИВЕН ПЕРСОНАЛ]],Параметри[#Headers],0))*INDEX('ПАРАМЕТРИ НА ПРОЕКТИТЕ'!$B$12:$H$12,1,MATCH(ПодробностиЗаПроекта[[#Headers],[АДМИНИСТРАТИВЕН ПЕРСОНАЛ]],Параметри[#Headers],0))*ПодробностиЗаПроекта[[#This Row],[ДЕЙСТВИТЕЛНА РАБОТА]]","v":{"v":1530,"d":"1,530 лв."}}]
[null,"ОБЩО",{"$nulls":5},{"$f":"SUBTOTAL(109,ПодробностиЗаПроекта[ОЧАКВАНА РАБОТА])","v":1500},{"$f":"SUBTOTAL(109,ПодробностиЗаПроекта[ДЕЙСТВИТЕЛНА РАБОТА])","v":1510},{"$f":"SUBTOTAL(109,ПодробностиЗаПроекта[ОЧАКВАНА ПРОДЪЛЖИТЕЛНОСТ])","v":225},{"$f":"SUBTOTAL(109,ПодробностиЗаПроекта[ДЕЙСТВИТЕЛНА ПРОДЪЛЖИТЕЛНОСТ])","v":597}]

{"sheet":"ОБЩИ СУМИ ЗА ПРОЕКТИТЕ","index":3,"n_rows":10,"n_cols":14,"rows_kept":10}
[null,{"$f":"'ПАРАМЕТРИ НА ПРОЕКТИТЕ'!B1","v":"Име на фирма"}]
[null,"Проследяване на проекти за управление на събития"]
[null,{"$f":"'ПАРАМЕТРИ НА ПРОЕКТИТЕ'!B3","v":"Име на фирма Поверително"}]
["Обобщената таблица, започваща от клетката вдясно, се актуализира автоматично.\nИНФОРМАЦИЯ\nЗа да обновите обобщената таблица вдясно, изберете я (произволна клетка в обобщената таблица), в раздела ИНСТРУМЕНТИ ЗА ОБОБЩЕНА ТАБЛИЦА | АНАЛИЗИРАНЕ на лентата изберете \"Обнови\" или натиснете SHIFT+F10 в произволна клетка в обобщената таблица и след това изберете \"Обнови\".","ИМЕ НА ПРОЕКТ","МЕНИДЖЪР КЛИЕНТИ  ","МЕНИДЖЪР ПРОЕКТИ  ","МЕНИДЖЪР СТРАТЕГИЯ  ","СПЕЦИАЛИСТ ПО ДИЗАЙН  ","ПЕРСОНАЛ ЗА СЪБИТИЕТО  ","АДМИНИСТРАТИВЕН ПЕРСОНАЛ  ","МЕНИДЖЪР КЛИЕНТИ   ","МЕНИДЖЪР ПРОЕКТИ   ","МЕНИДЖЪР СТРАТЕГИЯ   ","СПЕЦИАЛИСТ ПО ДИЗАЙН   ","ПЕРСОНАЛ ЗА СЪБИТИЕТО   ","АДМИНИСТРАТИВЕН ПЕРСОНАЛ   "]
[null,"Проект 1",{"v":7200,"d":"7,200.00 лв."},{"v":2400,"d":"2,400.00 лв."},{"v":18000,"d":"18,000.00 лв."},{"v":0,"d":"0.00 лв."},{"v":0,"d":"0.00 лв."},{"v":1200,"d":"1,200.00 лв."},{"v":7920,"d":"7,920.00 лв."},{"v":2640,"d":"2,640.00 лв."},{"v":19800,"d":"19,800.00 лв."},{"v":0,"d":"0.00 лв."},{"v":0,"d":"0.00 лв."},{"v":1320,"d":"1,320.00 лв."}]
[null,"Проект 2",{"v":14400,"d":"14,400.00 лв."},{"v":24000,"d":"24,000.00 лв."},{"v":6000,"d":"6,000.00 лв."},{"v":4000,"d":"4,000.00 лв."},{"v":0,"d":"0.00 лв."},{"v":2400,"d":"2,400.00 лв."},{"v":14040,"d":"14,040.00 лв."},{"v":23400,"d":"23,400.00 лв."},{"v":5850,"d":"5,850.00 лв."},{"v":3900,"d":"3,900.00 лв."},{"v":0,"d":"0.00 лв."},{"v":2340,"d":"2,340.00 лв."}]
[null,"Проект 3",{"v":18000,"d":"18,000.00 лв."},{"v":12000,"d":"12,000.00 лв."},{"v":0,"d":"0.00 лв."},{"v":25000,"d":"25,000.00 лв."},{"v":0,"d":"0.00 лв."},{"v":3000,"d":"3,000.00 лв."},{"v":18000,"d":"18,000.00 лв."},{"v":12000,"d":"12,000.00 лв."},{"v":0,"d":"0.00 лв."},{"v":25000,"d":"25,000.00 лв."},{"v":0,"d":"0.00 лв."},{"v":3000,"d":"3,000.00 лв."}]
[null,"Проект 4",{"v":5400,"d":"5,400.00 лв."},{"v":10800,"d":"10,800.00 лв."},{"v":0,"d":"0.00 лв."},{"v":0,"d":"0.00 лв."},{"v":1200,"d":"1,200.00 лв."},{"v":900,"d":"900.00 лв."},{"v":5220,"d":"5,220.00 лв."},{"v":10440,"d":"10,440.00 лв."},{"v":0,"d":"0.00 лв."},{"v":0,"d":"0.00 лв."},{"v":1160,"d":"1,160.00 лв."},{"v":870,"d":"870.00 лв."}]
[null,"Проект 5",{"v":9000,"d":"9,000.00 лв."},{"v":3000,"d":"3,000.00 лв."},{"v":0,"d":"0.00 лв."},{"v":0,"d":"0.00 лв."},{"v":12000,"d":"12,000.00 лв."},{"v":1500,"d":"1,500.00 лв."},{"v":9180,"d":"9,180.00 лв."},{"v":3060,"d":"3,060.00 лв."},{"v":0,"d":"0.00 лв."},{"v":0,"d":"0.00 лв."},{"v":12240,"d":"12,240.00 лв."},{"v":1530,"d":"1,530.00 лв."}]
[null,"Обща сума",{"v":54000,"d":"54,000.00 лв."},{"v":52200,"d":"52,200.00 лв."},{"v":24000,"d":"24,000.00 лв."},{"v":29000,"d":"29,000.00 лв."},{"v":13200,"d":"13,200.00 лв."},{"v":9000,"d":"9,000.00 лв."},{"v":54360,"d":"54,360.00 лв."},{"v":51540,"d":"51,540.00 лв."},{"v":25650,"d":"25,650.00 лв."},{"v":28900,"d":"28,900.00 лв."},{"v":13400,"d":"13,400.00 лв."},{"v":9060,"d":"9,060.00 лв."}]